bitfinex/quotes_ETHUSD_20260216
["timestamp","ask_amount","ask_price","bid_price","bid_amount"]
[1771238152177,1.30181638,1984.7,1984.3,0.002]
[1771238152679,1.30181638,1984.7,1984.4,0.002]
[1771238152900,1.30181638,1984.7,1984.3,0.002]
[1771238153296,1.30181638,1984.7,1984.4,0.002]
[1771238153297,0.844,1984.7,1984.4,0.002]
[1771238153595,0.844,1984.7,1984.4,0.001]
[1771238153797,0.844,1984.7,1984.4,0.003]
[1771238154274,1.30181638,1984.7,1984.4,0.003]
[1771238155184,0.45781638,1984.6,1984.4,0.003]
[1771238155388,0.45781638,1984.6,1984.4,0.001]
[1771238155591,0.45781638,1984.6,1984.4,0.003]
[1771238161819,0.45781638,1984.6,1984.4,0.001]
[1771238164016,1.31091638,1984.8,1984.5,0.002]
[1771238165479,0.8531,1984.8,1984.4,0.47328907]
[1771238165712,0.8531,1984.8,1984.5,0.47428907]
[1771238166013,0.0011,1984.8,1984.5,0.002]
[1771238166210,0.0011,1984.8,1984.6,0.002]
[1771238166395,0.0011,1984.8,1984.4,0.001]
[1771238166396,0.0011,1984.8,1984.5,0.002]
[1771238166585,0.0011,1984.8,1984.6,0.002]
[1771238166784,0.0011,1984.8,1984.5,0.002]
[1771238167284,0.0011,1984.8,1984.6,0.002]
[1771238167513,0.0011,1984.8,1984.5,0.002]
[1771238168013,0.0011,1984.8,1984.6,0.002]
[1771238168216,0.0011,1984.8,1984.5,0.002]
[1771238168714,0.0011,1984.8,1984.6,0.002]
[1771238169106,0.0011,1984.8,1984.7,0.002]
[1771238169413,0.0011,1984.8,1984.6,0.002]
[1771238169814,0.0011,1984.8,1984.7,0.002]
[1771238170010,0.0011,1984.8,1984.6,0.002]
[1771238170518,0.0011,1984.8,1984.7,0.002]
[1771238170810,0.0011,1984.8,1984.5,0.002]
[1771238171188,0.0011,1984.8,1984.6,0.002]
[1771238171400,0.0011,1984.8,1984.5,0.002]
[1771238171789,0.0011,1984.8,1984.6,0.002]
[1771238172116,0.0011,1984.8,1984.5,0.002]
[1771238172613,0.0011,1984.8,1984.6,0.002]
[1771238172816,0.0011,1984.8,1984.5,0.002]
[1771238173206,0.0011,1984.8,1984.6,0.002]
[1771238173389,0.0011,1984.8,1984.5,0.002]
[1771238173794,0.0011,1984.8,1984.6,0.002]
[1771238174089,0.0011,1984.8,1984.5,0.002]
[1771238174292,0.0011,1984.8,1984.6,0.002]
[1771238174516,0.0011,1984.8,1984.5,0.002]
[1771238175018,0.0011,1984.8,1984.6,0.002]
[1771238177638,0.0011,1984.8,1984.0,0.001]
[1771238177639,0.46033332,1984.4,1984.0,0.001]
[1771238177798,0.857,1984.3,1984.0,0.001]
[1771238178112,0.857,1984.3,1984.0,0.002]
[1771238178314,0.0011,1984.7,1984.3,0.001]
[1771238178494,0.0011,1984.7,1984.4,0.001]
[1771238178693,0.0011,1984.7,1984.5,0.001]
[1771238178893,0.0011,1984.7,1984.4,0.001]
[1771238179328,0.0011,1984.7,1984.5,0.001]
[1771238179524,0.0011,1984.7,1984.4,0.001]
[1771238179723,0.0011,1984.7,1984.3,0.001]
[1771238179724,0.46143332,1984.7,1984.3,0.001]
[1771238181123,0.46033332,1984.6,1984.3,0.001]
[1771238181327,0.0011,1984.7,1984.3,0.001]
[1771238181328,0.0011,1984.7,1984.3,0.002]
[1771238182110,0.0011,1984.7,1984.4,0.001]
[1771238182534,0.0011,1984.7,1984.5,0.001]
[1771238182836,0.0011,1984.7,1984.6,0.001]
[1771238183534,0.0011,1984.9,1984.7,0.001]
[1771238183826,0.0011,1984.9,1984.6,0.001]
[1771238184029,0.0011,1984.9,1984.6,0.46494635]
[1771238184230,0.0011,1984.9,1984.7,0.001]
[1771238184828,0.0011,1984.9,1984.8,0.001]
[1771238185028,0.0011,1984.9,1984.7,0.001]
[1771238185507,0.0011,1984.9,1984.8,0.001]
[1771238185708,0.0011,1984.9,1984.7,0.001]
[1771238186212,0.0011,1984.9,1984.8,0.001]
[1771238186402,0.0011,1984.9,1984.7,0.001]
[1771238186802,0.0011,1984.9,1984.8,0.001]
[1771238187036,0.0011,1984.9,1984.5,0.001]
[1771238187630,0.0011,1984.9,1984.6,0.001]
[1771238187809,0.0011,1984.9,1984.5,0.001]
[1771238188013,0.0011,1984.9,1984.5,0.46494635]
[1771238188205,0.0011,1984.9,1984.6,0.001]
[1771238188601,0.0011,1984.9,1984.7,0.001]
[1771238188823,0.0011,1984.9,1984.6,0.46494635]
[1771238189023,0.0011,1984.9,1984.6,0.46394635]
[1771238189227,0.0011,1984.9,1984.7,0.001]
[1771238191027,0.0011,1984.9,1984.8,0.001]
[1771238191523,0.0011,1984.9,1984.5,0.46394635]
[1771238191729,0.0011,1984.9,1984.6,0.001]
[1771238192112,0.0011,1984.9,1984.7,0.001]
[1771238196538,0.0011,1984.9,1984.5,0.46394635]
[1771238196739,0.0011,1984.9,1984.6,0.001]
[1771238197235,0.0011,1984.9,1984.7,0.001]
[1771238197418,0.0011,1984.9,1984.6,0.001]
[1771238197936,0.0011,1984.9,1984.7,0.001]
[1771238198146,0.0011,1984.9,1984.6,0.001]
[1771238198522,0.0011,1984.9,1984.5,0.46394635]
[1771238198726,0.0011,1984.9,1984.6,0.001]
[1771238199338,0.0011,1984.9,1984.7,0.001]
[1771238199541,0.0011,1984.9,1984.6,0.001]
[1771238199914,0.0011,1984.9,1984.7,0.001]
[1771238200132,0.0011,1984.9,1984.6,0.001]
[1771238200642,0.0011,1984.9,1984.7,0.001]
[1771238200832,0.0011,1984.9,1984.6,0.001]
[1771238201223,0.0011,1984.9,1984.7,0.001]
[1771238201440,0.0011,1984.9,1984.6,0.001]
[1771238201952,0.46143332,1984.9,1984.6,0.001]
[1771238202439,0.46143332,1984.9,1984.7,0.001]
[1771238202641,0.0011,1984.8,1984.7,0.001]
[1771238207342,0.0011,1984.9,1984.7,0.001]
[1771238209954,0.47500823,1984.9,1984.7,0.002]
[1771238213624,0.0011,1984.9,1984.7,0.002]
[1771238215367,0.0011,1984.9,1984.7,0.001]
[1771238215851,0.47500823,1984.9,1984.8,0.001]
[1771238216058,0.47500823,1984.9,1984.7,0.001]
[1771238216850,0.47500823,1984.9,1984.5,0.001]
[1771238217051,0.47500823,1984.9,1984.6,0.001]
[1771238220957,0.0011,1984.9,1984.7,0.001]
[1771238221257,0.0011,1984.9,1984.6,0.001]
[1771238221725,0.0011,1984.9,1984.7,0.001]
[1771238221928,0.0011,1984.9,1984.6,0.49195612]
[1771238222730,0.0011,1984.9,1984.7,0.001]
[1771238222929,0.0011,1984.9,1984.5,0.001]
[1771238222930,0.0011,1984.9,1984.6,0.001]
[1771238227211,0.0011,1984.9,1984.6,0.001]
[1771238227518,0.0011,1984.9,1984.7,0.001]
[1771238228125,0.47500823,1984.9,1984.7,0.002]
[1771238228276,0.0011,1984.8,1984.7,0.002]
[1771238228475,0.0011,1984.8,1984.7,0.001]
[1771238228894,0.0011,1984.8,1984.7,0.002]
[1771238229096,0.47390823,1984.7,1984.5,0.001]
[1771238229509,1.34590823,1984.7,1984.5,0.001]
[1771238231421,0.872,1984.7,1984.5,0.001]
[1771238231715,0.875,1984.6,1984.5,0.001]
[1771238234494,0.0011,1984.8,1984.5,0.001]
[1771238234700,0.0011,1984.8,1984.5,0.4776049]
[1771238238943,0.4203548,1984.9,1984.6,0.4766049]
[1771238239147,0.0011,1985.0,1984.6,0.4766049]
[1771238239536,0.0011,1985.0,1984.5,0.001]
[1771238239537,0.0011,1985.0,1984.5,0.4776049]
[1771238240522,0.0011,1985.0,1984.6,0.001]
[1771238240721,0.0011,1984.8,1984.6,0.001]
[1771238242038,0.45409706,1984.8,1984.6,0.001]
[1771238242240,0.0011,1984.8,1984.6,0.001]
[1771238247224,0.0011,1984.8,1984.6,0.4776049]
[1771238247563,1.25887506,1985.9,1984.8,0.4766049]
[1771238247744,3.709751,1985.7,1985.0,7.79937769]
[1771238247955,0.45299706,1985.6,1985.0,7.79937769]
[1771238248130,0.45299706,1985.6,1985.0,7.32277279]
[1771238249668,2.105678,1985.7,1985.1,0.4766049]
[1771238249868,2.55867506,1985.7,1985.1,0.4766049]
[1771238250169,0.45299706,1985.7,1985.1,0.4766049]
[1771238250332,0.45299706,1985.7,1985.0,7.32277279]
[1771238251249,0.876,1985.9,1985.4,7.79937769]
[1771238252436,0.876,1985.9,1985.5,0.4766049]
[1771238253531,0.0011,1985.6,1985.5,0.4766049]
[1771238253857,0.908,1986.3,1985.5,0.4766049]
[1771238253858,0.45299706,1986.3,1985.5,0.4766049]
[1771238254149,0.45299706,1986.3,1985.5,8.40331619]
[1771238254150,0.45299706,1986.2,1985.5,8.40331619]
[1771238254458,0.45299706,1986.1,1985.5,1.089]
[1771238259459,0.45299706,1986.1,1985.5,1.5656049]
[1771238259651,0.45299706,1986.2,1985.6,0.4766049]
[1771238259852,0.45299706,1986.2,1985.5,8.40331619]
[1771238260157,0.45299706,1986.0,1985.5,1.089]
[1771238261744,3.73367106,1986.2,1985.5,1.5656049]
[1771238262057,0.45299706,1986.2,1985.5,1.5656049]
[1771238263353,4.134308,1986.1,1985.5,1.5656049]
[1771238263537,0.45299706,1986.0,1985.5,1.089]
[1771238263738,0.45299706,1986.0,1985.3,0.4766049]
[1771238263933,0.45299706,1986.0,1985.1,7.76730398]
[1771238264133,0.47964622,1985.8,1985.1,0.45298779]
[1771238264874,0.47964622,1985.6,1984.8,0.45298779]
[1771238265035,0.47964622,1985.6,1984.8,1.53898779]
[1771238265472,0.47964622,1985.6,1984.8,8.85330398]
[1771238265855,0.47964622,1985.6,1985.5,0.001]
[1771238266070,0.47964622,1985.6,1984.8,8.85330398]
[1771238266372,0.47964622,1985.6,1985.3,0.001]
[1771238270268,1.34528443,1985.8,1985.3,0.001]
[1771238270445,0.877,1985.8,1985.3,0.4839628]
[1771238271579,0.877,1985.8,1985.3,0.001]
[1771238273386,0.877,1985.8,1985.3,0.4839628]
[1771238273956,1.34828443,1985.8,1985.3,0.001]
[1771238278789,1.34828443,1985.8,1985.4,0.001]
[1771238278957,0.0011,1985.7,1985.4,0.001]
[1771238280770,0.47238443,1985.7,1985.4,0.001]
[1771238282370,0.47128443,1985.5,1985.4,0.001]
[1771238285990,0.47128443,1985.6,1985.4,0.001]
[1771238287059,0.47128443,1985.6,1985.1,0.001]
[1771238287060,0.47128443,1985.5,1985.1,0.001]
[1771238287491,8.16480062,1985.8,1985.1,0.001]
[1771238287789,0.0011,1985.8,1985.3,0.4829628]
[1771238287975,0.0011,1985.8,1985.5,0.4829628]
[1771238289997,0.0011,1986.0,1985.5,0.4829628]
[1771238290378,0.0011,1986.0,1985.7,0.4829628]
[1771238290770,0.47128443,1986.4,1985.7,0.4829628]
[1771238290971,0.47128443,1986.3,1985.7,0.4829628]
[1771238291173,0.47128443,1986.3,1985.5,0.4829628]
[1771238291695,11.361536,1986.3,1985.5,0.4829628]
[1771238291893,11.83282043,1986.3,1985.5,0.4829628]
[1771238292094,0.47128443,1986.3,1985.5,0.4829628]
[1771238292999,0.0011,1985.9,1985.5,0.4829628]
[1771238297201,0.0011,1985.9,1985.4,7.31531619]
[1771238297407,0.0011,1985.9,1985.4,0.001]
[1771238298987,0.0011,1985.9,1985.5,0.47194843]
[1771238299191,0.0011,1985.9,1985.7,0.47194843]
[1771238299392,2.243703,1986.3,1985.7,0.47194843]
[1771238299995,0.4590558,1986.3,1985.5,0.47194843]
[1771238300375,0.4590558,1986.2,1985.5,0.47194843]
[1771238301803,0.4590558,1986.1,1985.4,0.001]
[1771238302796,0.4590558,1986.1,1985.4,0.47294843]
[1771238303715,2.60165168,1986.4,1985.5,0.47194843]
[1771238303916,12.77090368,1986.3,1985.5,0.47194843]
[1771238304220,4.220579,1986.1,1985.5,0.47194843]
[1771238304802,0.4590558,1986.1,1985.5,0.47194843]
[1771238305001,12.338322,1986.0,1985.4,0.001]
[1771238305308,0.4590558,1986.0,1985.4,0.001]
[1771238305911,13.031465,1986.1,1985.6,0.001]
[1771238306108,6.751261,1986.0,1985.6,0.001]
[1771238307800,0.888,1986.0,1985.6,0.001]
[1771238308002,1.3470558,1986.0,1985.6,0.001]
[1771238312039,0.888,1986.0,1985.6,0.001]
[1771238312220,0.4590558,1985.9,1985.6,0.001]
[1771238313844,1.3470558,1986.0,1985.6,0.001]
[1771238314035,0.4590558,1985.9,1985.6,0.001]
[1771238315746,0.888,1986.0,1985.6,0.001]
[1771238316644,1.3470558,1986.0,1985.6,0.001]
[1771238317954,0.888,1986.0,1985.6,0.001]
[1771238319154,1.3470558,1986.0,1985.6,0.001]
[1771238319874,0.4590558,1985.9,1985.6,0.001]
[1771238325560,0.888,1986.0,1985.6,0.001]
[1771238326052,1.34595824,1986.0,1985.6,0.001]
[1771238331869,1.34595824,1986.0,1985.7,0.001]
[1771238332376,0.0011,1985.9,1985.7,0.001]
[1771238332660,0.50066005,1985.9,1985.7,0.001]
[1771238332968,17.610643,1985.7,1985.5,0.001]
[1771238333166,0.92,1985.7,1985.5,0.001]
[1771238333653,0.92,1985.7,1985.5,0.47560123]
[1771238334361,0.9221,1985.9,1985.5,0.47560123]
[1771238343500,0.9221,1985.9,1985.5,0.001]
[1771238343879,1.42166005,1985.9,1985.5,0.001]
[1771238344102,0.9221,1985.9,1985.5,0.001]
[1771238345609,0.9221,1985.9,1985.6,0.001]
[1771238350103,0.9221,1985.9,1985.6,0.47560123]
[1771238351716,1.42166005,1985.9,1985.5,0.001]
[1771238351918,0.49956005,1985.8,1985.5,0.001]
[1771238356198,2.18100272,1985.9,1985.5,0.001]
[1771238356404,24.503483,1985.8,1985.5,0.001]
[1771238356585,15.910684,1985.8,1985.5,0.001]
[1771238356789,11.691715,1985.8,1985.5,0.001]
[1771238357123,0.9221,1985.9,1985.6,0.001]
[1771238357505,0.0011,1985.8,1985.6,0.001]
[1771238362930,0.48187929,1985.8,1985.6,0.001]
[1771238363315,0.0011,1985.8,1985.6,0.001]
[1771238368237,0.0011,1985.8,1985.4,0.001]
[1771238369521,6.760257,1985.6,1985.1,0.46920081]
[1771238369721,4.6491,1985.4,1985.1,0.46920081]
[1771238370335,5.12987929,1985.4,1984.7,0.46920081]
[1771238370628,3.078287,1985.3,1984.7,0.46920081]
[1771238370933,0.949,1985.2,1984.7,0.001]
[1771238373032,0.48077929,1985.1,1984.5,0.001]
[1771238373340,0.48077929,1984.9,1984.5,0.001]
[1771238373512,0.949,1984.8,1984.5,0.001]
[1771238373710,17.298947,1984.7,1984.5,0.001]
[1771238373903,16.753262,1984.4,1984.0,0.001]
[1771238374107,3.967365,1984.2,1984.0,0.001]
[1771238376140,1.25996046,1984.2,1984.0,0.001]
[1771238376348,15.788163,1984.1,1984.0,0.001]
[1771238377019,20.684609,1984.2,1984.0,0.001]
[1771238377214,3.625514,1984.2,1984.0,0.001]
[1771238377439,0.95,1984.3,1984.0,0.001]
[1771238377636,26.651743,1984.0,1983.6,0.001]
[1771238377845,1.43977929,1984.0,1983.6,0.001]
[1771238378235,18.37499,1983.9,1983.6,0.001]
[1771238378438,18.37499,1983.9,1983.3,0.001]
[1771238378744,26.981925,1983.6,1983.3,0.001]
[1771238378939,0.908,1984.1,1982.6,0.908]
[1771238378940,7.33039306,1983.4,1982.6,0.908]
[1771238379139,8.77317235,1983.4,1982.6,1.37620081]
[1771238379323,8.77317235,1983.4,1982.7,0.46820081]
[1771238380518,0.962,1983.4,1982.7,0.46820081]
[1771238381351,16.91982006,1982.8,1982.0,0.46820081]
[1771238381529,0.964,1982.7,1982.0,0.46820081]
[1771238382344,17.001863,1982.6,1982.0,0.46820081]
[1771238382551,0.48077929,1982.5,1981.6,0.46820081]
[1771238382749,0.965,1982.4,1981.6,0.46820081]
[1771238386050,8.65468,1982.6,1981.6,0.46820081]
[1771238388654,7.603573,1982.6,1981.6,0.46820081]
[1771238389833,0.966,1982.6,1981.6,0.46820081]
[1771238395961,0.966,1982.6,1981.7,0.001]
[1771238396167,0.966,1982.6,1981.8,0.48195969]
[1771238398863,0.46717224,1982.7,1981.8,0.48195969]
[1771238400372,0.46717224,1982.6,1981.8,0.48195969]
[1771238400982,0.46717224,1982.6,1981.7,0.001]
[1771238401153,0.46717224,1982.6,1981.7,0.48295969]
[1771238402374,0.0011,1983.0,1982.4,0.48195969]
[1771238402671,0.0011,1983.0,1982.0,1.53795969]
[1771238402672,0.46717224,1982.9,1982.0,1.53795969]
[1771238402871,0.46717224,1982.7,1981.8,0.48195969]
[1771238403047,13.786739,1982.8,1981.8,0.48195969]
[1771238403048,15.53977424,1982.6,1981.8,0.48195969]
[1771238403248,0.46717224,1982.6,1981.8,0.48195969]
[1771238403670,0.46717224,1982.5,1981.7,0.001]
[1771238407875,0.46717224,1982.3,1981.7,0.001]
[1771238410595,0.46717224,1982.1,1981.7,0.001]
[1771238411090,3.291523,1982.1,1981.7,0.001]
[1771238411298,0.46717224,1982.1,1981.7,0.001]
[1771238412462,0.46717224,1982.4,1981.7,0.001]
[1771238412661,3.05945124,1982.3,1981.7,0.001]
[1771238412978,3.943776,1982.2,1981.7,0.001]
[1771238413352,0.46717224,1982.1,1981.7,0.001]
[1771238413956,3.740845,1982.0,1981.7,0.001]
[1771238414188,3.438785,1982.0,1981.7,0.001]
[1771238415197,0.49252284,1982.0,1981.7,0.001]
[1771238415398,0.49252284,1981.9,1981.4,0.001]
[1771238415765,0.49252284,1981.8,1981.4,0.001]
[1771238415979,0.49252284,1981.5,1980.6,0.45271152]
[1771238416295,0.49252284,1981.3,1980.5,7.34282855]
[1771238416788,0.49252284,1981.3,1980.5,7.79554007]
[1771238417660,0.49252284,1981.3,1980.6,0.45271152]
[1771238417857,0.49252284,1981.3,1980.0,7.34282855]
[1771238417858,0.49252284,1981.3,1980.4,0.45271152]
[1771238418161,0.49252284,1981.2,1980.4,0.45271152]
[1771238418370,0.49252284,1981.0,1980.2,0.96971152]
[1771238418562,0.49252284,1981.0,1980.2,0.517]
[1771238420165,0.49252284,1981.0,1979.9,0.45271152]
[1771238420364,0.49252284,1980.6,1979.3,0.91423352]
[1771238420589,0.49252284,1980.2,1979.3,0.91423352]
[1771238420793,0.579,1980.5,1979.3,0.91423352]
[1771238420794,24.02175684,1980.1,1979.3,0.91423352]
[1771238420993,0.49252284,1980.1,1979.3,0.91423352]
[1771238421607,0.49252284,1980.4,1979.4,0.45271152]
[1771238421792,1.26209385,1980.9,1979.4,0.45271152]
[1771238421793,2.418923,1980.5,1979.4,0.45271152]
[1771238422304,0.49252284,1980.4,1979.4,0.45271152]
[1771238422873,0.49252284,1981.2,1979.6,0.45271152]
[1771238423087,15.081684,1980.9,1979.6,0.45271152]
[1771238423290,5.274977,1980.8,1979.6,0.45271152]
[1771238423776,2.685947,1980.8,1979.6,0.45271152]
[1771238424008,5.152928,1980.8,1979.6,0.45271152]
[1771238424308,4.18807,1980.8,1979.6,0.45271152]
[1771238424606,3.567155,1980.9,1979.8,0.45271152]
[1771238424777,6.104455,1981.0,1979.8,0.45271152]
[1771238425105,0.49252284,1980.7,1979.8,0.45271152]
[1771238425414,0.49252284,1980.7,1979.5,0.45271152]
[1771238425708,0.49252284,1980.7,1979.5,1.30471152]
[1771238425912,4.771475,1980.8,1979.6,0.45271152]
[1771238426293,0.49252284,1980.9,1979.6,0.45271152]
[1771238426494,0.967,1981.0,1979.6,0.45271152]
[1771238426716,3.961549,1980.9,1979.6,0.45271152]
[1771238427723,3.546638,1981.0,1979.6,0.45271152]
[1771238428035,3.144363,1981.1,1979.6,0.45271152]
[1771238428399,0.967,1981.2,1979.8,0.45271152]
[1771238428624,0.967,1981.2,1979.9,0.45271152]
[1771238429000,3.288959,1981.1,1979.9,0.45271152]
[1771238430320,0.967,1981.2,1979.9,0.45271152]
[1771238430556,0.49252284,1981.3,1979.9,0.45271152]
[1771238430733,0.93,1981.5,1979.9,0.45271152]
[1771238431026,0.93,1981.5,1980.3,0.45271152]
[1771238431197,2.181049,1981.4,1980.4,0.45271152]
[1771238431396,2.67357184,1981.4,1980.4,0.45271152]
[1771238431703,2.67357184,1981.4,1980.4,1.50971152]
[1771238431704,0.49252284,1981.4,1980.4,1.50971152]
[1771238433402,0.0011,1981.3,1980.4,1.50971152]
[1771238434027,0.49362284,1981.3,1979.9,0.45271152]
[1771238434197,0.49252284,1981.1,1980.0,0.96971152]
[1771238434911,0.49252284,1981.1,1980.1,0.45271152]
[1771238435628,0.0011,1981.3,1980.1,0.45271152]
[1771238437932,0.0011,1981.3,1980.2,0.45271152]
[1771238442832,0.0011,1981.4,1980.6,0.45271152]
[1771238443032,0.0011,1981.4,1980.8,0.45271152]
[1771238443523,0.0011,1981.6,1980.9,0.45271152]
[1771238444232,0.0011,1981.6,1981.0,0.48704915]
[1771238446437,0.0011,1981.5,1981.0,0.48704915]
[1771238446636,0.0011,1981.6,1981.0,0.48704915]
[1771238446835,0.47604599,1981.7,1981.0,0.48704915]
[1771238447413,0.0011,1981.8,1981.0,0.48704915]
[1771238448317,0.46405141,1981.8,1981.0,0.48704915]
[1771238452429,0.0011,1981.8,1981.0,0.48704915]
[1771238452945,0.46295141,1982.0,1980.8,0.60087213]
[1771238453140,0.46295141,1982.0,1981.0,0.49847213]
[1771238453956,0.46295141,1982.0,1981.1,0.49847213]
[1771238454153,0.46295141,1982.2,1981.1,0.49847213]
[1771238455865,0.46295141,1982.0,1981.1,0.49847213]
[1771238456265,0.46295141,1982.0,1980.7,0.49847213]
[1771238456467,0.46295141,1981.8,1981.0,0.819]
[1771238457445,0.46295141,1981.8,1981.0,1.31747213]
[1771238458753,0.46295141,1981.8,1981.1,0.001]
[1771238460163,0.46295141,1981.8,1981.1,0.49947213]
[1771238461749,0.46295141,1981.8,1981.1,0.001]
[1771238463348,0.46295141,1982.0,1981.1,0.49947213]
[1771238463959,0.46295141,1982.0,1981.1,0.49347213]
[1771238464990,0.0011,1982.1,1981.1,0.49347213]
[1771238466073,0.0011,1982.1,1981.4,8.82035057]
[1771238466252,0.0011,1982.1,1981.1,0.1024]
[1771238466253,0.0011,1982.1,1981.5,0.49847213]
[1771238466857,0.0011,1982.2,1981.5,0.49847213]
[1771238471401,0.46405141,1982.2,1981.5,0.49847213]
[1771238471770,0.46405141,1982.2,1981.6,0.001]
[1771238471964,0.0011,1982.1,1981.6,0.001]
[1771238472181,0.46405141,1982.2,1981.6,0.001]
[1771238472475,0.0011,1982.2,1981.6,0.49947213]
[1771238473092,0.0011,1982.4,1981.7,0.49847213]
[1771238473274,0.0011,1982.4,1981.8,0.49847213]
[1771238473478,0.46295141,1982.6,1981.8,0.49847213]
[1771238473479,0.46295141,1982.9,1981.8,0.49847213]
[1771238473789,0.46295141,1982.9,1982.0,0.48633265]
[1771238473984,0.46295141,1982.9,1981.9,1.955]
[1771238474806,0.46295141,1982.9,1981.9,2.44133265]
[1771238475169,0.46295141,1982.9,1982.0,0.48633265]
[1771238477470,0.0011,1983.0,1982.2,0.48633265]
[1771238477801,0.47529243,1983.0,1982.2,0.48633265]
[1771238478494,0.47529243,1983.0,1981.8,0.48633265]
[1771238478694,0.47529243,1983.0,1981.7,8.82035057]
[1771238478695,0.47529243,1983.0,1982.1,1.045]
[1771238482211,0.47529243,1983.0,1982.1,1.53133265]
[1771238484311,0.47419243,1982.8,1982.1,1.53133265]
[1771238496412,0.47529243,1982.9,1982.2,0.48633265]
[1771238496618,0.47529243,1982.9,1982.2,0.48733265]
[1771238501562,0.0011,1982.9,1982.2,0.48733265]
[1771238501860,0.47529243,1982.9,1982.2,0.48733265]
[1771238502164,0.47529243,1982.9,1982.4,7.33680728]
[1771238506164,0.47529243,1982.9,1982.3,7.33680728]
[1771238506662,0.0011,1983.0,1982.5,7.33680728]
[1771238506959,0.46783091,1983.0,1982.5,7.33680728]
[1771238510168,0.0011,1982.9,1982.5,7.33680728]
[1771238510467,0.46783091,1983.0,1982.5,7.33680728]
[1771238511141,0.46783091,1983.0,1982.5,8.37780728]
[1771238518368,0.0011,1983.0,1982.5,8.37780728]
[1771238518574,0.0011,1983.0,1982.5,8.87114814]
[1771238518875,0.0011,1983.0,1982.6,0.49334086]
[1771238519075,0.0011,1983.1,1982.7,7.33680728]
[1771238519459,0.0011,1983.1,1982.7,7.83014814]
[1771238519774,0.0011,1983.1,1982.6,0.49334086]
[1771238521277,0.0011,1983.1,1982.8,7.33680728]
[1771238521576,0.0011,1983.2,1982.8,8.87814814]
[1771238521773,0.0011,1983.3,1982.8,8.87814814]
[1771238521949,0.0011,1983.3,1983.0,7.33680728]
[1771238523349,0.0011,1983.2,1982.3,7.33680728]
[1771238523560,0.48348209,1983.1,1982.4,1.05]
[1771238524276,0.48348209,1983.1,1982.5,1.05]
[1771238524476,0.48348209,1983.1,1982.4,1.05]
[1771238529285,0.48348209,1982.9,1982.2,0.001]
[1771238529483,0.48348209,1982.9,1982.3,7.33680728]
[1771238531873,0.48348209,1982.9,1982.3,7.83014814]
[1771238532696,0.48348209,1982.9,1982.3,8.88014814]
[1771238535498,0.48348209,1982.9,1982.4,0.001]
[1771238535793,0.0011,1983.0,1982.4,0.45494281]
[1771238536496,0.45758518,1983.0,1982.4,0.45494281]
[1771238538099,0.45758518,1983.0,1982.4,0.001]
[1771238540401,0.45758518,1983.0,1982.4,0.45494281]
[1771238540580,0.0011,1983.0,1982.4,0.45494281]
[1771238540974,0.0011,1983.0,1982.5,7.79075009]
[1771238541178,0.0011,1983.0,1982.6,1.50994281]
[1771238541696,0.0011,1983.0,1982.6,1.056]
[1771238541902,0.0011,1983.0,1982.7,0.45394281]
[1771238545402,0.0011,1983.0,1982.6,1.50994281]
[1771238546006,0.0011,1983.0,1982.7,0.45394281]
[1771238546903,0.0011,1983.1,1982.7,0.45394281]
[1771238546904,0.0011,1983.1,1982.7,7.79075009]
[1771238547478,0.0011,1983.1,1982.7,7.33680728]
[1771238547701,0.0011,1983.1,1982.8,0.45394281]
[1771238548201,0.0011,1983.2,1982.8,0.45394281]
[1771238549008,0.0011,1982.9,1982.8,0.45394281]
[1771238549196,0.0011,1983.2,1982.8,0.45394281]
[1771238549398,0.0011,1983.0,1982.8,0.45394281]
[1771238549600,0.0011,1983.2,1982.7,7.33680728]
[1771238550102,0.45758518,1983.2,1982.7,7.33680728]
[1771238551401,0.45758518,1983.2,1982.9,7.33680728]
[1771238551402,0.0011,1983.2,1982.9,7.33680728]
[1771238551701,0.0011,1983.3,1982.9,8.85575009]
[1771238552912,0.0011,1983.3,1982.9,8.40180728]
[1771238553404,0.45758518,1983.3,1982.9,1.065]
[1771238554209,0.45758518,1983.3,1982.6,0.45394281]
[1771238554210,0.45758518,1983.3,1982.7,1.067]
[1771238555485,0.45648518,1983.2,1982.7,1.067]
[1771238558909,0.45648518,1983.2,1982.5,7.33680728]
[1771238559112,0.45648518,1983.2,1982.4,1.068]
[1771238559317,0.45648518,1983.2,1982.4,1.52194281]
[1771238560118,0.45648518,1983.2,1982.4,8.85922779]
[1771238560318,0.45648518,1983.2,1982.5,0.45394281]
[1771238560508,0.45648518,1983.2,1982.8,0.001]
[1771238560817,0.45758518,1983.1,1982.8,0.001]
[1771238562114,0.0011,1983.1,1982.8,0.001]
[1771238567004,0.0011,1983.1,1982.8,0.47501846]
[1771238567612,0.0011,1983.1,1982.8,0.001]
[1771238567923,0.49098015,1983.1,1982.8,0.001]
[1771238570328,0.49098015,1983.1,1982.8,0.47501846]
[1771238570329,0.0011,1983.1,1982.8,0.47501846]
[1771238574025,0.0011,1983.1,1982.8,0.001]
[1771238574425,0.0011,1983.1,1982.9,0.001]
[1771238580343,0.0011,1983.1,1982.9,0.47501846]
[1771238580637,0.0011,1983.3,1982.9,0.47501846]
[1771238582915,0.0011,1983.3,1982.9,7.81230344]
[1771238583338,0.0011,1983.3,1983.0,0.47401846]
[1771238587042,0.0011,1983.2,1983.0,0.47401846]
[1771238587220,0.0011,1983.3,1983.0,0.47401846]
[1771238588937,0.0011,1983.3,1982.9,7.33828498]
[1771238589923,0.49098015,1983.3,1982.9,0.001]
[1771238593657,0.0011,1983.3,1982.9,0.001]
[1771238593886,0.0011,1983.3,1983.0,0.45203699]
[1771238599054,0.0011,1983.3,1982.9,7.33828498]
[1771238599352,0.47782298,1983.3,1982.9,0.001]